bitfinex/quotes_SOLUSD_20250306
["timestamp","ask_amount","ask_price","bid_price","bid_amount"]
[1741222938874,80.8,145.34,145.33,0.03]
[1741222940370,2.7519,145.35,145.33,0.03]
[1741222941093,80.82699573,145.36,145.33,0.03]
[1741222941390,0.02699573,145.36,145.33,6.29]
[1741222941570,2.77879573,145.36,145.33,6.29]
[1741222941771,0.02699573,145.36,145.33,6.29]
[1741222942513,2.77879573,145.36,145.33,6.29]
[1741222943609,9.65819573,145.36,145.33,6.29]
[1741222943989,80.8,145.35,145.33,6.29]
[1741222944188,80.8,145.34,145.33,6.29]
[1741222944394,80.8,145.34,145.33,0.03]
[1741222945004,83.5521,145.34,145.33,0.03]
[1741222951724,6.90639573,145.36,145.33,0.03]
[1741222951725,2.77889573,145.36,145.33,0.03]
[1741222952727,9.65829573,145.36,145.33,0.03]
[1741222953429,6.8794,145.36,145.33,0.03]
[1741222954437,0.02699573,145.35,145.33,0.03]
[1741222955506,2.77889573,145.35,145.33,0.03]
[1741222955706,0.02699573,145.35,145.33,0.03]
[1741222959627,21.95171338,145.44,145.35,0.56864628]
[1741222959811,80.8,145.48,145.4,48.76934304]
[1741222960130,80.8,145.48,145.4,55.02934304]
[1741222960509,83.5495,145.48,145.4,55.02934304]
[1741222961124,80.8,145.48,145.4,61.81346618]
[1741222961331,0.033,145.5,145.4,218.71346618]
[1741222961701,0.033,145.5,145.4,225.59096618]
[1741222962421,0.033,145.5,145.41,19.21829514]
[1741222962730,0.033,145.5,145.44,29.83537104]
[1741222963735,0.033,145.5,145.43,0.14216157]
[1741222964035,0.033,145.5,145.43,18.79181043]
[1741222965133,0.033,145.5,145.43,25.66771043]
[1741222965337,0.033,145.5,145.43,55.50308147]
[1741222965926,0.033,145.5,145.43,48.62718147]
[1741222966225,0.033,145.5,145.43,18.79181043]
[1741222967646,0.033,145.5,145.43,55.50328147]
[1741222967941,0.033,145.5,145.44,29.83537104]
[1741222968548,0.033,145.5,145.43,48.62718147]
[1741222969967,0.033,145.5,145.43,55.50318147]
[1741222970646,0.033,145.5,145.43,48.62718147]
[1741222971142,0.033,145.5,145.43,55.50328147]
[1741222971530,0.033,145.5,145.43,48.62718147]
[1741222972450,0.033,145.5,145.43,55.50328147]
[1741222972630,0.033,145.5,145.43,48.62718147]
[1741222972829,0.033,145.5,145.44,48.91150461]
[1741222973048,0.033,145.5,145.46,29.83537104]
[1741222973222,0.033,145.5,145.47,29.83537104]
[1741222973421,0.033,145.5,145.48,6.26]
[1741222973934,0.033,145.5,145.48,36.09537104]
[1741222974827,0.033,145.5,145.48,42.96907104]
[1741222975340,0.033,145.5,145.48,6.26]
[1741222976257,0.033,145.5,145.48,36.09537104]
[1741222976629,0.033,145.5,145.49,18.59901047]
[1741222976847,0.033,145.5,145.49,37.53298247]
[1741222977720,0.033,145.5,145.48,6.26]
[1741222978157,0.033,145.56,145.49,44.69060561]
[1741222978333,0.033,145.56,145.53,18.59901047]
[1741222978659,0.033,145.56,145.54,29.73376745]
[1741222978964,0.033,145.56,145.53,29.73376745]
[1741222979256,0.033,145.56,145.54,312.0]
[1741222979749,0.033,145.56,145.54,341.73376745]
[1741222980149,0.033,145.56,145.55,18.933972]
[1741222980339,0.033,145.56,145.55,48.66773945]
[1741222980651,0.033,145.56,145.55,18.933972]
[1741222980852,0.033,145.56,145.54,6.0785]
[1741222981562,0.033,145.56,145.53,0.28432314]
[1741222981743,0.033,145.56,145.53,48.66773945]
[1741222982347,0.033,145.56,145.53,55.53893945]
[1741222982548,0.033,145.56,145.55,18.933972]
[1741222983255,0.033,145.56,145.55,312.0]
[1741222983438,0.033,145.56,145.53,0.28432314]
[1741222984170,0.033,145.56,145.53,55.53893945]
[1741222984568,0.033,145.56,145.53,48.66773945]
[1741222984749,0.033,145.56,145.53,55.53913945]
[1741222985265,0.033,145.56,145.54,0.28432314]
[1741222985471,0.033,145.56,145.55,30.01809059]
[1741222986345,0.033,145.56,145.55,348.88849059]
[1741222987860,0.033,145.56,145.55,430.18849059]
[1741222989386,0.033,145.56,145.55,118.18849059]
[1741222990489,0.033,145.56,145.55,81.3]
[1741222990777,0.033,145.56,145.55,94.4304]
[1741222991081,0.033,145.56,145.55,143.38246259]
[1741222991668,0.033,145.56,145.55,113.64869514]
[1741222992383,0.033,145.56,145.55,425.64869514]
[1741222992681,0.033,145.56,145.55,418.493972]
[1741222993681,0.033,145.56,145.55,399.56]
[1741222993888,0.033,145.56,145.55,6.26]
[1741222994273,0.033,145.56,145.53,29.73376745]
[1741222994483,0.033,145.56,145.54,6.26]
[1741222994667,0.033,145.56,145.54,35.99376745]
[1741222995178,0.033,145.56,145.55,18.933972]
[1741222995358,0.033,145.56,145.55,48.66773945]
[1741222995562,0.033,145.56,145.55,18.933972]
[1741222996786,0.033,145.56,145.55,330.933972]
[1741222997274,0.033,145.56,145.55,337.804372]
[1741222998509,0.033,145.56,145.55,312.28432314]
[1741222998680,0.033,145.56,145.55,337.804372]
[1741222999275,0.033,145.56,145.55,367.53813945]
[1741223000588,0.033,145.56,145.55,356.38461777]
[1741223001263,0.033,145.56,145.55,356.66894091]
[1741223001475,0.033,145.56,145.55,44.66894091]
[1741223003403,0.033,145.56,145.55,25.804372]
[1741223003689,0.033,145.56,145.55,26.08869514]
[1741223003894,0.033,145.56,145.55,18.933972]
[1741223004492,0.033,145.56,145.55,330.933972]
[1741223005200,0.033,145.56,145.55,312.0]
[1741223006195,0.033,145.56,145.55,330.64964886]
[1741223006500,0.033,145.56,145.55,337.804372]
[1741223006705,0.033,145.56,145.55,356.38461777]
[1741223006884,0.033,145.56,145.55,337.804372]
[1741223007496,0.033,145.56,145.55,330.933972]
[1741223007996,0.033,145.56,145.55,312.0]
[1741223008400,0.033,145.56,145.55,6.24]
[1741223011776,20.033,145.56,145.52,6.24]
[1741223012088,100.833,145.56,145.52,6.24]
[1741223013602,9.6185,145.55,145.5,0.03]
[1741223013908,20.0,145.51,145.5,0.03]
[1741223015879,22.7489,145.51,145.5,0.03]
[1741223016805,22.7489,145.51,145.46,6.26]
[1741223016806,2.7489,145.51,145.46,6.26]
[1741223016985,104.1659,145.51,145.43,6.26]
[1741223017409,90.4212,145.51,145.43,6.26]
[1741223017920,90.4212,145.51,145.43,318.26]
[1741223018093,90.4212,145.51,145.43,6.26]
[1741223018288,1.778,145.49,145.41,0.03]
[1741223018492,82.578,145.49,145.41,0.03]
[1741223019815,9.6232,145.48,145.41,0.03]
[1741223020208,80.8,145.47,145.41,0.03]
[1741223020603,20.0,145.44,145.41,0.03]
[1741223021417,20.0,145.44,145.43,0.03]
[1741223022001,22.7502,145.44,145.43,0.03]
[1741223023824,80.8,145.46,145.43,0.03]
[1741223024120,2.7501,145.45,145.43,0.03]
[1741223024315,20.0,145.44,145.43,0.03]
[1741223024988,1.778,145.49,145.43,0.03]
[1741223024989,82.578,145.49,145.43,0.03]
[1741223025613,2.7495,145.48,145.43,0.03]
[1741223028213,2.7495,145.48,145.43,312.03]
[1741223028410,9.6232,145.48,145.43,312.03]
[1741223028912,9.6232,145.48,145.43,318.29]
[1741223029314,9.6232,145.48,145.43,6.29]
[1741223029904,80.8,145.47,145.43,6.29]
[1741223031216,9.6245,145.46,145.43,6.29]
[1741223033824,20.0,145.44,145.43,6.29]
[1741223034402,22.7502,145.44,145.43,0.03]
[1741223043851,22.7502,145.44,145.43,0.0001]
[1741223049340,9.6233,145.48,145.43,0.0001]
[1741223052824,20.0,145.45,145.43,0.0001]
[1741223053353,80.8,145.44,145.43,0.0001]
[1741223053532,22.7502,145.44,145.43,0.0001]
[1741223053932,22.7502,145.44,145.41,0.03]
[1741223053933,9.6258,145.44,145.41,0.03]
[1741223054725,20.0,145.42,145.41,0.03]
[1741223055024,20.0,145.42,145.37,1.7494]
[1741223055025,20.0,145.41,145.35,6.29]
[1741223055635,2.751,145.4,145.35,6.29]
[1741223056447,9.6285,145.4,145.35,6.29]
[1741223057038,9.6285,145.4,145.35,0.03]
[1741223057636,6.8775,145.4,145.35,0.03]
[1741223057840,80.8,145.39,145.35,0.03]
[1741223059653,2.7514,145.38,145.35,0.03]
[1741223059825,80.8,145.37,145.35,0.03]
[1741223061323,2.7517,145.36,145.35,0.03]
[1741223062637,83.5517,145.36,145.35,0.03]
[1741223064526,80.8,145.36,145.35,0.03]
[1741223065648,80.8,145.41,145.35,0.03]
[1741223065954,80.8,145.41,145.36,1.8765]
[1741223065955,83.5509,145.41,145.36,1.8765]
[1741223068030,80.8,145.43,145.37,6.2836]
[1741223068230,2.7501,145.45,145.38,37.56989649]
[1741223068459,2.7501,145.45,145.38,118.86989649]
[1741223069137,0.033,145.42,145.38,118.86989649]
[1741223069580,0.033,145.42,145.39,6.878]
[1741223069853,0.033,145.42,145.4,6.26]
[1741223070433,10.47368705,145.49,145.4,6.26]
[1741223070434,10.47368705,145.49,145.41,45.62621963]
[1741223070639,10.47368705,145.49,145.44,18.92024763]
[1741223070840,10.47368705,145.49,145.44,0.28432314]
[1741223071041,10.47368705,145.49,145.44,18.933972]
[1741223071754,10.47368705,145.49,145.45,6.26]
[1741223072946,2.7822,145.5,145.45,6.26]
[1741223073538,0.033,145.5,145.45,6.26]
[1741223073842,0.033,145.5,145.45,13.1351]
[1741223074055,0.033,145.5,145.47,6.6464]
[1741223074957,0.033,145.5,145.47,8.4606]
[1741223075461,0.033,145.5,145.49,0.28432314]
[1741223075760,0.033,145.5,145.49,126.02751963]
[1741223076559,0.033,145.56,145.49,126.02751963]
[1741223076867,0.033,145.56,145.51,18.63592449]
[1741223077371,2.781,145.56,145.51,330.63592449]
[1741223077747,0.033,145.56,145.51,312.0]
[1741223079968,0.033,145.56,145.5,0.28432314]
[1741223080262,0.033,145.56,145.52,6.24]
[1741223080457,0.033,145.56,145.51,6.24]
[1741223080661,20.0,145.54,145.51,6.24]
[1741223080864,80.8,145.53,145.51,6.24]
[1741223082068,2.7487,145.52,145.51,6.24]
[1741223085453,2.7487,145.52,145.47,6.6464]
[1741223085767,80.8,145.51,145.46,6.24]
[1741223086071,80.8,145.51,145.43,7.9432]
[1741223086382,90.4219,145.5,145.44,6.24]
[1741223089955,83.5491,145.5,145.44,6.24]
[1741223090361,80.8,145.49,145.44,6.24]
[1741223091573,2.7495,145.48,145.44,6.24]
[1741223091758,83.5495,145.48,145.44,6.24]
[1741223092975,83.5495,145.48,145.44,6.27]
[1741223093690,80.8,145.48,145.44,13.1456]
[1741223094284,80.8,145.48,145.44,6.27]
[1741223094466,80.8,145.48,145.44,13.1455]
[1741223094788,2.7493,145.49,145.44,13.1455]
[1741223094956,2.7493,145.49,145.44,6.27]
[1741223095576,6.3069,145.56,145.5,24.93531043]
[1741223095577,80.833,145.56,145.5,24.93531043]
[1741223095780,80.833,145.56,145.5,50.44393492]
[1741223096155,80.833,145.56,145.5,6.1435]
[1741223096356,83.581,145.56,145.5,6.1435]
[1741223096680,20.0,145.53,145.5,6.1435]
[1741223097781,20.0,145.53,145.5,13.0163]
[1741223098378,20.0,145.53,145.5,6.1435]
[1741223098763,80.8,145.55,145.5,6.1435]
[1741223099282,83.5482,145.55,145.5,6.1435]
[1741223100080,80.8,145.55,145.5,13.0163]
[1741223100969,83.5482,145.55,145.5,6.1435]
[1741223101368,80.8,145.55,145.5,13.0161]
[1741223101685,80.8,145.54,145.47,6.3483]
[1741223101886,80.8,145.53,145.48,6.24]
[1741223102065,20.0,145.5,145.48,6.24]
[1741223102685,80.8,145.54,145.49,18.63592449]
[1741223102876,0.033,145.56,145.49,37.28557335]
[1741223103087,20.0,145.54,145.49,18.64964886]
[1741223103614,0.033,145.56,145.5,39.31569649]
[1741223104188,0.033,145.56,145.51,6.8723]
[1741223104564,0.033,145.56,145.51,318.8723]
[1741223105685,0.033,145.56,145.52,44.44139649]
[1741223105992,0.033,145.56,145.54,6.5116]
[1741223107792,0.033,145.56,145.54,13.3824]
[1741223108486,0.033,145.56,145.54,6.5116]
[1741223108687,0.033,145.56,145.54,13.3825]
[1741223109992,0.033,145.56,145.54,6.5116]
[1741223110309,0.033,145.56,145.54,6.24]
[1741223110809,0.033,145.56,145.52,81.3]
[1741223111001,80.8,145.55,145.51,6.24]
[1741223112309,2.7483,145.54,145.51,6.24]
[1741223113285,80.8,145.55,145.51,6.24]
[1741223113491,80.8,145.55,145.51,13.1122]
[1741223113710,80.8,145.55,145.51,325.1122]
[1741223113906,0.033,145.56,145.51,325.1122]
[1741223114412,0.033,145.56,145.52,37.56989649]
[1741223115705,0.033,145.56,145.53,18.63592449]
[1741223116719,0.033,145.56,145.54,6.8709]
[1741223117106,0.033,145.56,145.54,27.22402449]
[1741223117303,0.033,145.56,145.55,37.56989649]
[1741223117509,0.033,145.56,145.55,119.15421963]
[1741223117716,0.033,145.56,145.55,100.233972]
[1741223118016,0.033,145.56,145.55,118.86989649]
[1741223118416,0.033,145.56,145.54,8.5881]
[1741223118812,0.033,145.56,145.55,37.85421963]
[1741223119627,0.033,145.56,145.55,349.85421963]
[1741223120121,0.033,145.56,145.55,19.21829514]
[1741223120326,0.033,145.56,145.55,26.08869514]
[1741223120627,0.033,145.56,145.55,44.72461963]
[1741223120826,0.033,145.56,145.55,126.02461963]
[1741223121929,0.033,145.56,145.55,107.38869514]
[1741223122132,0.033,145.56,145.54,20.35312449]
[1741223122133,0.033,145.56,145.54,1.7172]
[1741223122321,0.033,145.56,145.54,8.5881]
[1741223122519,0.033,145.56,145.54,27.22402449]
[1741223123107,0.033,145.56,145.55,37.85421963]
[1741223123321,0.033,145.56,145.55,125.21411963]
[1741223124227,0.033,145.56,145.55,132.08451963]
[1741223125829,0.033,145.56,145.55,19.1703]
[1741223126034,0.033,145.56,145.55,57.02451963]
[1741223126515,0.033,145.56,145.55,369.02451963]
[1741223126715,0.033,145.56,145.55,450.32451963]
[1741223127229,0.033,145.56,145.55,138.32451963]
[1741223129321,0.033,145.56,145.55,113.164272]
[1741223129628,0.033,145.56,145.55,119.11994886]
[1741223129825,0.033,145.56,145.55,6.24]
[1741223131127,0.033,145.56,145.55,132.26461963]
[1741223131838,0.033,145.56,145.55,113.62869514]
[1741223132219,0.033,145.56,145.55,132.26461963]
[1741223134330,0.033,145.56,145.55,444.26461963]
[1741223136641,0.033,145.56,145.55,519.86461963]
[1741223137238,0.033,145.56,145.55,501.22869514]
[1741223138958,0.033,145.56,145.55,318.24]
[1741223139171,0.033,145.56,145.55,6.24]
[1741223139539,0.033,145.56,145.55,6.52432314]
[1741223139870,0.033,145.56,145.55,13.67904628]
[1741223141885,0.033,145.56,145.55,6.24]
[1741223145689,0.033,145.56,145.52,25.29592449]
[1741223145888,0.033,145.56,145.53,6.24]
[1741223146583,0.033,145.56,145.51,88.1721]
[1741223146890,0.033,145.56,145.54,6.24]
[1741223148486,0.033,145.56,145.54,325.1109]
[1741223148781,0.033,145.56,145.54,318.24]
[1741223149084,0.033,145.56,145.55,0.28432314]
[1741223149293,0.033,145.56,145.55,18.933972]
[1741223150265,0.033,145.56,145.55,25.804372]
[1741223151191,0.033,145.56,145.54,6.24]
[1741223151486,0.033,145.56,145.53,88.1713]
[1741223151487,0.033,145.56,145.53,6.24]
[1741223151870,0.033,145.56,145.5,393.33]
[1741223152075,0.033,145.56,145.53,6.24]
[1741223152478,2.781,145.56,145.5,400.2026]
[1741223152679,0.033,145.56,145.51,6.24]
[1741223154691,0.033,145.56,145.55,0.56864628]
[1741223154989,0.033,145.56,145.55,182.19007077]
[1741223155195,0.033,145.56,145.55,200.83971963]
[1741223155993,0.033,145.58,145.57,0.28432314]
[1741223156202,0.033,145.58,145.57,18.92024763]
[1741223156997,10.50668705,145.62,145.58,0.56864628]
[1741223157295,10.50668705,145.62,145.61,18.77808606]
[1741223157483,0.033,145.62,145.61,18.77808606]
[1741223157671,0.033,145.62,145.61,330.77808606]
[1741223158069,0.033,145.62,145.61,312.42648471]
[1741223158302,0.033,145.62,145.61,312.0]
[1741223161001,0.033,145.62,145.59,6.24]
[1741223161300,0.033,145.62,145.58,18.933972]
[1741223161479,0.033,145.62,145.6,18.933972]
[1741223161682,0.033,145.62,145.61,6.8676]
[1741223161892,0.033,145.62,145.61,25.94373357]
[1741223162102,0.033,145.62,145.61,44.57965806]
[1741223163512,0.033,145.62,145.61,201.62181963]
[1741223163687,0.033,145.62,145.61,209.75061963]
[1741223164001,0.033,145.62,145.61,520.03951963]
[1741223176421,0.033,145.62,145.61,519.47087335]
[1741223176717,0.033,145.62,145.61,519.86181963]
[1741223178098,0.033,145.62,145.61,444.26181963]
[1741223180525,0.033,145.62,145.61,494.41724886]
[1741223180819,0.033,145.62,145.61,443.69317335]
[1741223181119,0.033,145.62,145.61,444.26181963]
[1741223183514,0.033,145.62,145.61,132.26181963]
[1741223186635,0.033,145.62,145.61,444.26181963]
[1741223188040,0.033,145.62,145.61,106.61613357]
[1741223189421,0.033,145.62,145.61,81.3]
[1741223189639,0.033,145.62,145.59,0.03]
[1741223189640,0.033,145.62,145.6,6.24]
[1741223195430,0.033,145.62,145.59,312.03]
[1741223195638,0.033,145.62,145.59,6.27]
[1741223196322,0.033,145.62,145.59,0.03]
[1741223196831,21.8205,145.6,145.59,0.03]
[1741223197321,1.8205,145.6,145.59,0.03]
[1741223198021,1.8205,145.6,145.5,0.03]
[1741223198221,1.8205,145.6,145.51,6.24]
[1741223198442,9.616,145.59,145.51,6.24]
[1741223198631,9.616,145.59,145.5,318.27]
[1741223199114,9.616,145.59,145.5,6.27]
[1741223200511,9.616,145.59,145.51,19.21829514]
[1741223200720,1.8205,145.6,145.54,18.933972]
[1741223200918,20.0,145.58,145.54,18.933972]
[1741223201252,20.0,145.58,145.5,6.27]
[1741223201253,20.0,145.58,145.5,87.57]
[1741223201441,20.0,145.58,145.5,6.27]
[1741223202119,80.8,145.57,145.5,6.27]
[1741223202320,2.748,145.56,145.5,6.27]
[1741223202625,1.7293,145.54,145.5,0.03]
[1741223202825,82.5293,145.54,145.5,0.03]
[1741223203340,20.0,145.58,145.51,18.92024763]
[1741223203553,80.8,145.59,145.52,37.28557335]
[1741223204211,80.8,145.59,145.53,6.8714]
[1741223205127,80.8,145.59,145.53,318.8714]
[1741223206040,80.8,145.59,145.53,337.50732449]
[1741223206426,1.7293,145.6,145.54,37.56989649]
[1741223206740,0.033,145.62,145.57,18.63592449]
[1741223206949,0.033,145.62,145.58,6.24]
[1741223207249,0.033,145.62,145.58,24.87592449]
[1741223207452,0.033,145.62,145.6,19.07613357]
[1741223207655,0.033,145.62,145.59,99.93592449]
[1741223207821,0.033,145.62,145.59,81.3]
[1741223208324,0.033,145.62,145.59,99.93592449]
[1741223208762,0.033,145.62,145.6,37.85421963]
[1741223208943,0.033,145.62,145.61,37.71205806]
[1741223209442,0.033,145.62,145.61,331.07613357]
[1741223211750,0.033,145.62,145.61,349.71205806]
[1741223212449,0.033,145.62,145.61,126.02181963]
[1741223212952,0.033,145.62,145.61,201.62181963]
[1741223214053,0.033,145.62,145.61,208.16641963]
[1741223214461,0.033,145.62,145.61,209.88701963]
[1741223215436,0.033,145.62,145.61,521.88701963]
[1741223216351,0.033,145.65,145.64,20.56864628]
[1741223216550,0.033,145.65,145.64,214.75421963]
[1741223218458,0.033,145.65,145.64,221.62041963]
[1741223219559,0.033,145.65,145.64,533.62041963]
[1741223220460,0.0001,145.65,145.64,533.62041963]
[1741223221365,0.033,145.71,145.7,19.21829514]
[1741223221656,0.033,145.71,145.7,207.85761963]
[1741223222060,0.033,145.71,145.7,200.99421963]
[1741223222260,0.033,145.71,145.7,182.35829514]
[1741223222462,0.033,145.71,145.7,182.21613357]
[1741223222662,0.033,145.71,145.7,6.24]
[1741223224947,1.8577,145.71,145.67,6.22]
[1741223225164,0.033,145.71,145.68,19.07613357]
[1741223226060,0.033,145.71,145.67,24.85592449]
[1741223226246,0.033,145.71,145.67,6.22]
[1741223229751,9.641,145.71,145.65,0.42648471]
[1741223229954,9.641,145.71,145.66,6.22]
[1741223231951,2.7781,145.71,145.66,6.22]
[1741223233776,9.641,145.71,145.64,37.28557335]
[1741223233957,1.6859,145.69,145.64,6.22]
[1741223234965,20.0,145.67,145.61,18.64964886]
[1741223235171,80.8,145.68,145.63,6.22]
[1741223235486,80.8,145.67,145.63,6.22]
[1741223236072,2.7461,145.66,145.63,6.22]
[1741223240764,1.6859,145.69,145.64,37.71205806]
[1741223241377,1.6859,145.69,145.64,19.07613357]
[1741223241571,4.4314,145.69,145.64,19.07613357]
[1741223242377,2.7453,145.7,145.64,25.94233357]
[1741223242958,2.7453,145.7,145.63,81.3]
[1741223243158,1.7284,145.69,145.63,87.52]
[1741223244671,2.7457,145.68,145.63,87.52]
[1741223246290,83.5457,145.68,145.63,6.22]
[1741223247276,80.8,145.68,145.63,6.22]
[1741223247477,80.8,145.68,145.64,19.07613357]
[1741223248579,80.8,145.68,145.65,6.8657]
[1741223249084,20.033,145.7,145.65,6.8657]
[1741223249279,22.7784,145.7,145.65,6.8657]
[1741223249475,20.033,145.7,145.65,318.8657]
[1741223249677,0.033,145.7,145.65,318.8657]
[1741223252581,0.033,145.7,145.65,6.8657]
[1741223253802,0.033,145.7,145.66,19.21829514]
[1741223253989,0.033,145.7,145.68,19.07613357]
[1741223254185,0.033,145.7,145.69,19.07613357]
[1741223255487,0.033,145.7,145.68,81.3]
[1741223255701,0.033,145.7,145.69,7.14812314]
[1741223256290,0.033,145.7,145.69,25.797772]
[1741223256869,0.033,145.7,145.69,44.43369649]
[1741223257074,0.033,145.7,145.69,126.01801963]
[1741223257284,0.033,145.77,145.74,0.28432314]
[1741223257597,0.033,145.77,145.76,0.42648471]
[1741223258301,0.033,145.77,145.75,6.22]
[1741223258503,0.033,145.77,145.75,31.73064886]
[1741223258882,0.033,145.77,145.75,24.86964886]
[1741223259300,0.033,145.77,145.76,19.21829514]
[1741223259518,0.033,145.77,145.76,44.71471963]
[1741223260182,0.033,145.77,145.76,356.71471963]
[1741223261814,0.033,145.77,145.76,312.0]
[1741223262007,0.033,145.77,145.75,87.52]
[1741223262389,0.033,145.77,145.76,19.07613357]
[1741223263699,0.033,145.77,145.76,18.933972]
[1741223264402,0.033,145.77,145.76,19.07613357]
[1741223265892,0.033,145.77,145.76,44.71471963]
[1741223266395,0.033,145.77,145.76,207.84641963]
[1741223266711,0.033,145.77,145.76,214.06641963]
[1741223267290,0.033,145.8,145.79,39.07613357]
[1741223267596,0.033,145.8,145.79,139.01205806]
[1741223267808,0.033,145.8,145.79,214.75421963]
[1741223268409,0.033,145.8,145.79,221.61331963]
[1741223269306,0.033,145.8,145.79,533.61331963]
[1741223269713,0.033,145.8,145.79,526.75421963]
[1741223270584,0.033,145.8,145.79,533.61331963]
[1741223275009,0.033,145.8,145.79,537.08458715]
[1741223281093,4.5567,145.91,145.79,537.08458715]
[1741223281300,2.7414,145.91,145.87,19.07613357]
[1741223281498,2.7414,145.91,145.88,6.22]
[1741223282715,6.8861,145.92,145.88,6.22]
[1741223282914,0.033,145.92,145.88,6.22]
[1741223283835,0.033,145.92,145.89,19.07613357]
[1741223284010,0.033,145.92,145.89,37.71205806]
[1741223284211,0.033,145.92,145.9,0.14216157]
[1741223284406,0.033,145.92,145.91,19.07613357]
[1741223284719,0.033,145.92,145.91,119.15421963]
[1741223284919,0.033,145.92,145.91,126.00771963]
[1741223286224,0.033,145.92,145.91,203.04634317]
[1741223286519,0.033,145.92,145.91,201.60771963]
[1741223287826,0.033,145.92,145.91,513.60771963]
[1741223288022,0.033,145.92,145.89,88.1541]
[1741223288205,0.033,145.92,145.89,69.77657149]
[1741223288524,0.033,145.92,145.91,37.85421963]
[1741223288922,0.033,145.92,145.91,131.69426663]
[1741223289424,0.033,145.92,145.91,113.05834214]
[1741223289726,0.033,145.92,145.91,131.69426663]
[1741223290423,0.033,145.92,145.91,88.99426663]
[1741223291019,0.033,145.92,145.91,400.99426663]
[1741223291202,1.8341894,145.95,145.94,39.21829514]
[1741223291399,1.8341894,145.95,145.94,102.14076663]
[1741223291804,8.94e-05,145.95,145.94,109.61226573]
[1741223292004,8.94e-05,145.95,145.94,111.37866573]
[1741223292428,8.94e-05,145.95,145.94,109.94056663]
[1741223292815,8.94e-05,145.95,145.94,111.37876086]
[1741223293017,8.94e-05,145.95,145.94,118.23086086]
[1741223294515,8.94e-05,145.95,145.94,430.23086086]
[1741223294829,8.94e-05,145.95,145.94,428.79266663]
[1741223295915,8.94e-05,145.95,145.94,432.17474183]
[1741223298228,8.94e-05,145.95,145.94,438.37474183]
[1741223298610,8.94e-05,145.95,145.94,434.99266663]
[1741223298841,8.94e-05,145.95,145.94,433.22626663]
[1741223301340,8.94e-05,145.95,145.94,408.55694214]
[1741223301520,8.94e-05,145.95,145.94,114.62422035]
[1741223301721,8.94e-05,145.95,145.94,107.77212035]
[1741223301921,8.94e-05,145.95,145.94,108.19860506]
[1741223302539,8.94e-05,145.95,145.94,63.220519]
[1741223302707,8.94e-05,145.95,145.94,50.486547]
[1741223305713,8.94e-05,145.95,145.94,6.2]
[1741223308335,8.94e-05,145.95,145.94,0.03]
[1741223308538,8.94e-05,145.95,145.94,6.23]
[1741223308709,8.94e-05,145.95,145.94,0.03]
[1741223308915,9.5896,145.99,145.94,6.23]
[1741223309115,80.8,145.98,145.94,0.03]
[1741223309531,2.7402,145.97,145.94,0.03]
[1741223309934,83.5401,145.98,145.94,0.03]
[1741223310240,80.8,145.98,145.94,37.59989649]